bitfinex/quotes_ETHUSD_20241001
["timestamp","ask_amount","ask_price","bid_price","bid_amount"]
[1727782987823,3.79335,2636.2,2636.0,1.5121804]
[1727782988144,3.79348,2636.1,2636.0,1.5121804]
[1727782988352,3.79335,2636.2,2636.0,0.93250652]
[1727782988847,3.79348,2636.1,2636.0,0.10240652]
[1727782989048,3.97958971,2636.2,2635.7,0.7763]
[1727782989228,1.61832371,2635.8,2635.7,0.7763]
[1727782989428,5.41223371,2635.8,2635.7,0.7763]
[1727782991151,1.61832371,2635.8,2635.7,0.7763]
[1727782993765,5.41223371,2635.8,2635.7,0.7763]
[1727782993933,1.61832371,2635.8,2635.7,0.7763]
[1727782994858,5.41223371,2635.8,2635.7,0.7763]
[1727782995060,3.79376,2636.0,2635.7,0.7763]
[1727782995270,3.79364,2636.0,2635.7,0.7763]
[1727782995574,3.79364,2636.0,2635.8,0.46264595]
[1727782995729,3.79364,2636.0,2635.7,0.7763]
[1727782999462,3.79378,2635.9,2635.8,0.10255528]
[1727783000955,9.20547371,2636.1,2635.8,0.10255528]
[1727783001881,3.79334,2636.2,2635.8,0.57545776]
[1727783002189,3.79334,2636.2,2635.9,0.8157]
[1727783002344,7.58677,2636.2,2635.9,0.8157]
[1727783002768,7.58677,2636.2,2636.0,0.10223625]
[1727783003891,3.79326,2636.3,2636.0,0.10223625]
[1727783004060,3.79312,2636.4,2636.1,0.7852]
[1727783004254,3.79326,2636.3,2636.1,0.88731818]
[1727783005447,3.79333,2636.2,2636.1,0.88731818]
[1727783007653,3.79329,2636.3,2636.1,0.88731818]
[1727783008986,3.79308,2636.4,2636.1,1.355424]
[1727783009189,3.79333,2636.2,2636.1,0.10211818]
[1727783009792,3.7936,2636.1,2635.9,0.8287]
[1727783010097,5.41192371,2636.1,2635.9,0.8287]
[1727783010295,3.7936,2636.1,2635.9,0.8287]
[1727783010452,5.41192371,2636.1,2635.9,1.290971]
[1727783012185,3.79362,2636.0,2635.9,1.290971]
[1727783012364,3.79362,2636.0,2635.9,0.8287]
[1727783013497,1.61832371,2636.1,2635.9,0.8287]
[1727783013703,5.41183371,2636.1,2635.9,0.8287]
[1727783014194,3.79362,2636.0,2635.9,0.8287]
[1727783015067,5.41181371,2636.1,2635.9,0.8287]
[1727783015492,1.61832371,2636.1,2635.9,0.8287]
[1727783015796,5.41184371,2636.1,2635.9,0.8287]
[1727783016459,1.61832371,2636.1,2635.9,0.8287]
[1727783017413,3.79338,2636.2,2635.9,0.8287]
[1727783018789,7.5868,2636.2,2635.9,0.8287]
[1727783019311,3.79338,2636.2,2635.9,0.8287]
[1727783023402,7.58682,2636.2,2635.9,0.8287]
[1727783023607,3.79338,2636.2,2635.9,0.8287]
[1727783025016,7.58684,2636.2,2635.9,0.8287]
[1727783025218,7.58681,2636.2,2635.9,0.8287]
[1727783025421,1.61832371,2636.1,2635.9,0.8287]
[1727783025734,1.61832371,2636.1,2635.7,0.7975]
[1727783025907,1.61832371,2635.8,2635.6,0.0560295]
[1727783028421,3.79385,2635.9,2635.6,0.0560295]
[1727783029383,3.79385,2635.9,2635.7,0.10246093]
[1727783031787,5.380116,2635.9,2635.7,0.10246093]
[1727783032126,3.79385,2635.9,2635.7,0.10246093]
[1727783034121,1.61832371,2636.0,2635.7,0.10246093]
[1727783034293,5.41197371,2636.0,2635.7,0.10246093]
[1727783035599,3.79378,2635.9,2635.7,0.10246093]
[1727783036005,5.41197371,2636.0,2635.7,0.10246093]
[1727783036325,5.379866,2636.1,2635.8,0.7926]
[1727783036823,5.379866,2636.1,2635.9,0.10223684]
[1727783036990,3.7936,2636.1,2635.9,0.10223684]
[1727783037190,5.379866,2636.1,2635.9,0.10223684]
[1727783039038,3.79362,2636.0,2635.9,0.10223684]
[1727783040445,9.173476,2636.1,2635.9,0.10223684]
[1727783041113,3.79362,2636.0,2635.9,0.10223684]
[1727783044329,3.79362,2636.0,2635.8,0.7926]
[1727783044526,3.79362,2636.0,2635.6,0.8529295]
[1727783044527,3.79377,2635.9,2635.6,0.8529295]
[1727783044822,3.79405,2635.7,2635.6,0.52075545]
[1727783045057,3.79405,2635.7,2635.6,0.0560295]
[1727783045424,5.41225371,2635.8,2635.6,0.0560295]
[1727783048176,5.380066,2635.9,2635.6,0.0560295]
[1727783049249,1.586266,2635.8,2635.6,0.0560295]
[1727783049449,1.586266,2635.8,2635.6,0.89988745]
[1727783050163,5.380066,2635.9,2635.6,0.89988745]
[1727783050474,1.586266,2635.8,2635.6,0.89988745]
[1727783051550,5.380066,2635.9,2635.6,0.89988745]
[1727783052569,1.586266,2635.8,2635.6,0.89988745]
[1727783054854,5.380066,2635.9,2635.6,0.89988745]
[1727783055059,5.380066,2635.9,2635.6,0.0560295]
[1727783055261,1.586266,2635.8,2635.6,0.0560295]
[1727783056688,5.380066,2635.9,2635.6,0.0560295]
[1727783057864,1.586266,2635.9,2635.7,0.8097]
[1727783058499,3.79364,2636.0,2635.7,0.8097]
[1727783058500,1.586266,2636.0,2635.7,4.60374]
[1727783058661,1.586266,2636.0,2635.8,0.84538995]
[1727783059266,1.586266,2636.0,2635.8,4.63928995]
[1727783059584,1.586266,2636.1,2635.9,0.10223079]
[1727783060285,1.586266,2636.1,2635.7,4.60374]
[1727783060466,1.586266,2636.1,2636.0,0.10211272]
[1727783060662,5.379746,2636.1,2635.7,4.60374]
[1727783060866,5.379746,2636.1,2636.0,0.10211272]
[1727783061064,5.379746,2636.1,2635.7,4.60374]
[1727783061368,5.37894464,2636.1,2635.7,4.60368]
[1727783061567,5.37894464,2636.1,2635.7,5.45666148]
[1727783061875,1.58546464,2636.1,2635.7,5.45664148]
[1727783062091,1.58546464,2636.1,2635.8,3.79391]
[1727783062299,5.37895464,2636.1,2635.7,5.45670148]
[1727783062484,5.37895464,2636.1,2635.8,0.9306911]
[1727783062822,1.58546464,2636.1,2635.8,0.9306911]
[1727783063499,5.37896464,2636.1,2635.8,0.9306911]
[1727783063814,1.58546464,2636.0,2635.8,0.9306911]
[1727783065217,3.79363,2636.0,2635.8,0.9306911]
[1727783066406,5.37909464,2636.0,2635.8,0.9306911]
[1727783067984,1.58546464,2636.0,2635.8,0.9306911]
[1727783068181,5.37901464,2636.1,2635.8,0.9306911]
[1727783068581,1.58546464,2636.0,2635.8,0.9306911]
[1727783068819,5.37901464,2636.1,2635.8,0.9306911]
[1727783069024,1.58546464,2636.0,2635.7,0.8097]
[1727783069227,6.99748835,2636.0,2635.7,0.8097]
[1727783071390,1.58546464,2635.9,2635.7,0.8097]
[1727783071809,6.99748835,2636.0,2635.7,0.8097]
[1727783072429,1.58546464,2635.9,2635.7,0.8097]
[1727783072932,6.99748835,2636.0,2635.7,0.8097]
[1727783073435,1.58546464,2635.9,2635.7,0.8097]
[1727783074587,1.58546464,2635.9,2635.8,0.10231724]
[1727783077708,3.20378835,2636.0,2635.8,0.10231724]
[1727783081419,1.58546464,2635.9,2635.8,0.10231724]
[1727783082507,3.20378835,2636.0,2635.8,0.10231724]
[1727783083426,1.58546464,2635.9,2635.8,0.10231724]
[1727783084231,3.20378835,2636.0,2635.8,0.10231724]
[1727783084418,1.58546464,2635.9,2635.8,0.10231724]
[1727783084622,3.20378835,2636.0,2635.8,0.10231724]
[1727783085007,1.58546464,2635.9,2635.8,0.10231724]
[1727783085203,3.20378835,2636.0,2635.8,0.10231724]
[1727783086335,1.58546464,2635.9,2635.8,0.10231724]
[1727783086539,3.20378835,2636.0,2635.8,0.10231724]
[1727783087255,1.58546464,2635.9,2635.8,0.10231724]
[1727783091753,1.58546464,2635.9,2635.8,5.13494491]
[1727783091955,1.58546464,2636.0,2635.8,5.13494491]
[1727783093064,1.58546464,2636.0,2635.8,1.34103491]
[1727783094763,1.58546464,2636.0,2635.8,5.13493491]
[1727783095126,1.58546464,2636.0,2635.8,1.34103491]
[1727783096770,5.37897464,2636.1,2635.8,1.34103491]
[1727783096970,1.58546464,2636.0,2635.8,1.34103491]
[1727783097974,1.58546464,2635.9,2635.8,1.34103491]
[1727783098966,1.98294635,2636.0,2635.8,1.34103491]
[1727783098967,5.37911464,2636.0,2635.8,1.34103491]
[1727783099167,5.41183371,2636.1,2635.8,0.86481724]
[1727783099763,9.20542371,2636.1,2635.8,0.86481724]
[1727783100058,5.41183371,2636.1,2635.8,0.86481724]
[1727783100376,3.79364,2636.0,2635.8,0.86481724]
[1727783100879,5.3801597,2636.0,2635.8,0.86481724]
[1727783101549,5.3801597,2636.0,2635.8,0.10231724]
[1727783101859,4.55775,2635.7,2635.6,0.0560295]
[1727783102061,6.17607371,2635.7,2635.6,0.0560295]
[1727783104444,6.17607371,2635.7,2635.6,0.15858596]
[1727783106348,6.17457371,2635.7,2635.6,0.15858596]
[1727783106667,6.17457371,2635.7,2635.6,0.0560295]
[1727783110097,6.17457371,2635.7,2635.6,0.15875315]
[1727783111161,6.17457371,2635.7,2635.6,0.0560295]
[1727783113899,6.17457371,2635.7,2635.6,0.15875466]
[1727783115809,6.99467586,2635.7,2635.6,0.15875466]
[1727783116218,6.99467586,2635.7,2635.6,0.0560295]
[1727783116508,5.41237371,2635.7,2635.6,0.0560295]
[1727783116877,6.99394849,2635.7,2635.6,0.0560295]
[1727783117088,5.41237371,2635.7,2635.6,0.0560295]
[1727783117416,5.41237371,2635.7,2635.6,0.15875315]
[1727783117584,6.99374903,2635.7,2635.6,0.0560295]
[1727783118105,6.99374903,2635.7,2635.6,0.15875315]
[1727783118810,5.41237371,2635.7,2635.6,0.15875315]
[1727783119001,5.41237371,2635.7,2635.6,0.0560295]
[1727783119512,5.41237371,2635.7,2635.6,0.15874865]
[1727783119675,6.99331044,2635.7,2635.6,0.15874865]
[1727783120383,6.99331044,2635.7,2635.6,0.0560295]
[1727783120583,6.99331044,2635.7,2635.6,0.15874865]
[1727783121071,6.23317371,2635.7,2635.6,0.0560295]
[1727783122120,7.81394513,2635.7,2635.6,0.0560295]
[1727783122323,6.23317371,2635.7,2635.6,0.0560295]
[1727783123396,7.81384484,2635.7,2635.6,0.0560295]
[1727783124122,6.23317371,2635.7,2635.6,0.0560295]
[1727783125089,7.81380602,2635.7,2635.6,0.0560295]
[1727783126433,6.99300602,2635.7,2635.6,0.0560295]
[1727783127126,5.41237371,2635.7,2635.6,0.15874865]
[1727783127333,6.99300602,2635.7,2635.6,0.15874865]
[1727783127485,5.41237371,2635.7,2635.6,0.15874865]
[1727783127823,6.99300602,2635.7,2635.6,0.15874865]
[1727783128126,6.99300602,2635.7,2635.6,0.0560295]
[1727783128420,5.41237371,2635.7,2635.6,0.0560295]
[1727783128933,5.41237371,2635.7,2635.6,0.15874865]
[1727783129112,3.79391,2635.8,2635.6,0.15874865]
[1727783129312,3.79363,2636.0,2635.7,0.8155]
[1727783129655,3.79405,2635.7,2635.6,0.0560295]
[1727783129806,5.41237371,2635.7,2635.6,0.0560295]
[1727783130010,5.41237371,2635.7,2635.6,0.15875015]
[1727783130545,1.61832371,2635.7,2635.6,0.0560295]
[1727783130706,1.61832371,2635.7,2635.6,0.15875015]
[1727783131347,1.61832371,2635.7,2635.6,0.63033216]
[1727783132256,1.61832371,2635.7,2635.6,0.66694011]
[1727783136057,1.61832371,2635.9,2635.6,4.46114011]
[1727783136213,5.37437231,2636.0,2635.7,0.82]
[1727783136214,3.79374,2636.0,2635.7,0.82]
[1727783136407,3.79374,2636.0,2635.7,1.34811401]
[1727783136609,1.61832371,2635.9,2635.8,0.13903993]
[1727783137627,5.41209371,2635.9,2635.8,0.13903993]
[1727783138565,5.41209371,2635.9,2635.7,1.34811401]
[1727783138724,5.41209371,2635.9,2635.8,0.13903993]
[1727783146762,3.19895602,2635.9,2635.6,0.0560295]
[1727783146933,5.41237371,2635.7,2635.6,0.0560295]
[1727783148476,7.80498545,2635.7,2635.6,0.0560295]
[1727783148778,8.20064122,2635.7,2635.6,0.0560295]
[1727783149279,8.20035672,2635.7,2635.6,0.0560295]
[1727783149477,8.20035672,2635.7,2635.6,0.19526469]
[1727783150550,5.41237371,2635.7,2635.6,0.19526469]
[1727783150882,6.99421233,2635.7,2635.6,0.19526469]
[1727783151076,5.41237371,2635.7,2635.6,0.19526469]
[1727783151250,6.99421233,2635.7,2635.6,0.19526469]
[1727783152173,5.41237371,2635.7,2635.6,0.19526469]
[1727783152372,6.99421233,2635.7,2635.6,0.19526469]
[1727783152670,5.41237371,2635.7,2635.6,0.19526469]
[1727783154284,6.99421233,2635.7,2635.6,0.19526469]
[1727783154874,5.41237371,2635.7,2635.6,0.19526469]
[1727783155081,6.99421233,2635.7,2635.6,0.19526469]
[1727783156189,5.41237371,2635.7,2635.6,0.19526469]
[1727783156389,6.99421233,2635.7,2635.6,0.19526469]
[1727783160404,6.99421233,2635.7,2635.6,0.19530236]
[1727783160592,5.37577862,2635.8,2635.6,0.19530236]
[1727783160796,5.37577862,2635.8,2635.6,0.6705006]
[1727783160797,3.79394,2635.8,2635.6,0.6705006]
[1727783160978,5.77156239,2636.0,2635.7,4.57355]
[1727783160979,1.58183862,2636.0,2635.7,4.57355]
[1727783161325,3.7937,2636.0,2635.7,0.91865337]
[1727783161599,6.99371233,2636.1,2635.8,0.52440111]
[1727783161801,3.79363,2636.0,2635.8,0.663435]
[1727783162165,6.99366233,2636.1,2635.8,0.663435]
[1727783163208,3.79363,2636.0,2635.8,0.663435]
[1727783163568,5.41209371,2635.9,2635.8,0.663435]
[1727783163785,5.41209371,2635.9,2635.8,0.13903389]
[1727783163999,3.79396,2635.8,2635.6,0.0560295]
[1727783164222,1.58183862,2636.2,2635.8,0.95353389]
[1727783164500,1.97808805,2636.3,2636.0,0.8145]
[1727783164501,5.37504862,2636.3,2636.0,0.8145]
[1727783165008,5.37504862,2636.3,2636.1,0.13865442]
[1727783165170,9.16832862,2636.3,2636.1,0.13865442]
[1727783165365,3.79333,2636.2,2636.1,0.13865442]
[1727783165770,5.37504862,2636.3,2636.1,0.13865442]
[1727783166467,9.16836862,2636.3,2636.1,0.13865442]
[1727783166707,3.79333,2636.2,2636.1,0.13865442]
[1727783168217,3.79321,2636.3,2636.1,0.13865442]
[1727783169004,5.37615493,2636.3,2636.1,0.13865442]
[1727783170589,3.79321,2636.3,2636.1,0.13865442]
[1727783171028,5.37615493,2636.3,2636.1,0.13865442]
[1727783171319,6.99440864,2636.4,2636.1,0.13865442]
[1727783171524,1.58294493,2636.3,2636.1,0.61333686]
[1727783171929,6.99440864,2636.4,2636.1,0.61333686]
[1727783172100,5.37608493,2636.4,2636.1,0.61333686]
[1727783173490,3.79314,2636.4,2636.1,0.61333686]
[1727783173711,5.37608493,2636.4,2636.1,0.13865442]
[1727783173915,3.79321,2636.3,2636.1,0.13865442]
[1727783174092,1.58294493,2636.4,2636.1,0.13865442]
[1727783174286,5.37601493,2636.4,2636.1,0.13865442]
[1727783174492,3.79307,2636.4,2636.1,0.61334486]
[1727783175228,6.99417864,2636.5,2636.1,4.40676486]
[1727783175443,6.99417864,2636.5,2636.2,0.8086]
[1727783175640,6.99417864,2636.5,2636.3,0.52153649]
[1727783175841,1.58294493,2636.6,2636.3,0.6598692]
[1727783176031,5.37558493,2636.7,2636.4,0.8086]
[1727783176397,3.79384,2635.9,2635.7,0.8086]
[1727783176739,1.61832371,2635.8,2635.7,0.8086]
[1727783177392,1.61832371,2635.8,2635.7,1.65391095]
[1727783178139,5.41195371,2636.0,2635.7,1.65391095]
[1727783178741,1.61832371,2636.0,2635.7,5.44794095]
[1727783179553,1.61832371,2636.0,2635.8,0.13429511]
[1727783179697,1.61832371,2636.0,2635.8,0.69812167]
[1727783180718,1.61832371,2636.0,2635.8,3.79391]
[1727783181127,1.61832371,2636.0,2635.9,0.13417564]
[1727783181825,1.61832371,2636.0,2635.9,0.13414189]
[1727783182137,1.61832371,2636.0,2635.7,4.67851239]
[1727783182334,1.61832371,2636.0,2635.9,0.13414189]
[1727783182541,1.61832371,2636.0,2635.8,0.13426136]
[1727783183835,1.61832371,2636.2,2635.8,0.13426136]
[1727783184057,5.41167371,2636.2,2635.8,3.92815136]
[1727783184252,5.41167371,2636.2,2635.8,0.13426136]
[1727783184610,5.41167371,2636.2,2635.8,3.92810136]
[1727783187344,3.79351,2636.1,2635.8,0.13426136]
[1727783187702,1.61832371,2636.0,2635.8,0.13426136]
[1727783188245,5.41197371,2636.0,2635.8,0.13426136]
[1727783188421,5.41197371,2636.0,2635.7,0.8086]
[1727783188743,5.41197371,2636.0,2635.9,0.13414189]
[1727783188939,5.41197371,2636.0,2635.8,0.13426136]
[1727783189145,5.41197371,2636.0,2635.9,0.13414189]
[1727783189947,5.41197371,2636.0,2635.7,0.8086]
[1727783190250,5.41197371,2636.0,2635.8,0.13426136]
[1727783192248,1.61832371,2636.0,2635.8,0.13426136]
[1727783192618,5.41196371,2636.0,2635.8,0.13426136]
[1727783194243,1.61832371,2636.0,2635.8,0.13426136]
[1727783198925,10.78792125,2636.0,2635.8,0.13426136]
[1727783199129,3.79377,2635.9,2635.8,0.13426136]
[1727783199327,3.79377,2635.9,2635.6,0.0560295]
[1727783199531,3.79377,2635.9,2635.8,0.13438493]
[1727783199854,6.99432125,2635.9,2635.8,0.13438493]
[1727783200059,6.99432125,2635.9,2635.6,0.0560295]
[1727783200356,6.99432125,2635.9,2635.8,0.13438493]
[1727783200527,3.20055125,2635.9,2635.7,0.13450441]
[1727783200732,3.20055125,2635.9,2635.8,0.13438493]
[1727783201142,3.20055125,2635.9,2635.6,3.8501395]
[1727783201351,3.20055125,2635.9,2635.8,0.13438493]
[1727783201555,3.20055125,2635.9,2635.7,0.13450441]
[1727783201759,3.20055125,2635.9,2635.8,0.13438493]
[1727783202456,3.20055125,2635.9,2635.6,0.0560295]
[1727783202655,3.20055125,2635.9,2635.8,0.13438493]
[1727783202957,3.20055125,2635.9,2635.6,0.0560295]
[1727783203158,5.37599754,2635.9,2635.8,0.13438493]
[1727783203318,6.99432125,2635.9,2635.7,0.13450441]
[1727783203519,5.37599754,2635.9,2635.8,0.13438493]
[1727783203939,5.37599754,2635.9,2635.6,0.0560295]
[1727783204257,5.37599754,2635.9,2635.7,0.13450441]
[1727783204460,1.61832371,2635.8,2635.7,0.13450441]
[1727783205881,3.20055125,2635.8,2635.7,0.13450441]
[1727783207461,1.61832371,2635.8,2635.7,0.13450441]
[1727783207895,3.20055125,2635.8,2635.7,0.13450441]
[1727783208179,4.00265125,2635.8,2635.7,0.13450441]
[1727783208346,7.79656125,2635.8,2635.7,0.13450441]
[1727783208554,8.19556735,2635.8,2635.7,0.13450441]
[1727783212555,9.17123371,2635.8,2635.7,0.13450441]
[1727783212806,10.78855372,2635.8,2635.6,0.0560295]
[1727783212971,9.92937001,2635.7,2635.6,0.0560295]
[1727783214105,7.55305,2635.7,2635.6,0.0560295]
[1727783214292,9.92937001,2635.7,2635.6,0.0560295]
[1727783214664,7.55305,2635.7,2635.6,0.0560295]
[1727783215462,9.17137371,2635.7,2635.6,0.0560295]
[1727783217393,11.14898276,2635.7,2635.6,0.0560295]
[1727783217562,11.14899754,2635.7,2635.6,0.0560295]
[1727783221113,11.14745921,2635.7,2635.6,0.0560295]
[1727783223414,8.14745921,2635.7,2635.6,0.0560295]
[1727783225611,3.79405,2635.7,2635.6,0.0560295]
[1727783225812,6.99239274,2635.7,2635.6,0.0560295]
[1727783226023,6.99239274,2635.7,2635.6,0.19078146]
[1727783226199,5.37406903,2635.7,2635.6,0.0560295]
[1727783226513,3.79405,2635.7,2635.6,0.0560295]
[1727783226811,5.41237371,2635.7,2635.6,0.19081571]
[1727783228023,5.41237371,2635.7,2635.6,0.0560295]
[1727783229419,5.41237371,2635.7,2635.6,0.19081571]
[1727783232239,6.99239274,2635.7,2635.6,0.19081571]
[1727783235755,5.41237371,2635.7,2635.6,0.19081571]
[1727783235958,6.99316013,2635.7,2635.6,0.19081571]
[1727783236107,6.99316013,2635.7,2635.6,0.0560295]
[1727783236308,6.99316013,2635.7,2635.6,0.19081571]
[1727783237415,5.41237371,2635.7,2635.6,0.19081571]
[1727783242621,6.99316013,2635.7,2635.6,0.19081571]
[1727783250580,5.41237371,2635.7,2635.6,0.19081571]
[1727783250782,6.9955014,2635.7,2635.6,0.19081571]
[1727783251144,5.41237371,2635.7,2635.6,0.19081571]
[1727783252572,7.39045294,2635.7,2635.6,0.19081571]
[1727783253621,1.5835747,2635.7,2635.6,0.99071571]
[1727783253887,5.3774247,2635.9,2635.7,0.7999]
[1727783254273,5.3774247,2635.9,2635.8,0.13450408]
[1727783254474,3.79385,2635.9,2635.8,0.13450408]
[1727783254645,5.3774247,2635.9,2635.8,0.13450408]
[1727783255897,3.79385,2635.9,2635.8,0.13450408]
[1727783256262,3.79385,2635.9,2635.7,0.7999]
[1727783256470,3.79385,2635.9,2635.8,0.13450408]
[1727783256795,3.79385,2635.9,2635.7,0.7999]
[1727783257101,3.79385,2635.9,2635.8,0.13450408]
[1727783257306,5.41217371,2635.9,2635.8,0.13450408]
[1727783257709,3.79391,2635.8,2635.7,0.7999]
[1727783258183,3.79391,2635.8,2635.7,0.93452356]
[1727783258581,5.3774847,2635.8,2635.7,0.13462356]
[1727783258890,5.77336636,2635.8,2635.6,0.0560295]
[1727783259075,6.99522306,2635.7,2635.6,0.0560295]
[1727783259570,6.99522306,2635.7,2635.6,0.19077254]
[1727783259769,6.99522306,2635.7,2635.6,0.0560295]
[1727783259973,6.99522306,2635.7,2635.6,0.19077254]
[1727783260171,6.99522306,2635.7,2635.6,0.0560295]
[1727783260404,6.99522306,2635.7,2635.6,0.19077254]
[1727783260613,6.99522306,2635.7,2635.6,0.0560295]
[1727783261076,6.99522306,2635.7,2635.6,0.19077254]
[1727783261707,5.41237371,2635.7,2635.6,0.19077254]
[1727783261905,6.99548313,2635.7,2635.6,0.19077254]
[1727783262365,5.41237371,2635.7,2635.6,0.19077254]
[1727783262569,6.99556117,2635.7,2635.6,0.19077254]
[1727783263316,5.41237371,2635.7,2635.6,0.19077254]
[1727783263610,6.99560098,2635.7,2635.6,0.19077254]
[1727783263815,5.41237371,2635.7,2635.6,0.19077254]
[1727783264508,6.99573247,2635.7,2635.6,0.19077254]
[1727783266627,6.99573247,2635.7,2635.6,0.94967254]
[1727783267006,1.58335876,2635.8,2635.6,0.94967254]
[1727783267327,5.37727876,2635.8,2635.6,0.94967254]
[1727783268227,1.61832371,2635.7,2635.6,0.94967254]
[1727783274303,5.41237371,2635.7,2635.6,0.94967254]
[1727783274510,5.41237371,2635.7,2635.6,0.19077254]
[1727783274904,6.99573247,2635.7,2635.6,0.19077254]
[1727783276167,5.41237371,2635.7,2635.6,0.19077254]
[1727783276335,6.99573247,2635.7,2635.6,0.19077254]
[1727783276719,3.20168247,2635.7,2635.6,0.19077254]
[1727783277097,6.99573247,2635.7,2635.6,0.19077254]
[1727783279510,3.20168247,2635.7,2635.6,0.19077254]
[1727783281560,6.99573247,2635.7,2635.6,0.19077254]
[1727783282762,7.39240868,2635.7,2635.6,0.19077254]
[1727783283125,5.41237371,2635.7,2635.6,0.19077254]
[1727783283458,8.61333275,2635.7,2635.6,0.0560295]
[1727783286942,11.61333275,2635.7,2635.6,0.0560295]
[1727783287131,9.78727371,2635.7,2635.6,0.0560295]
[1727783293468,12.15906901,2635.7,2635.6,0.0560295]
[1727783297065,9.9907453,2635.7,2635.6,0.0560295]
[1727783297269,10.38815498,2635.7,2635.6,0.0560295]
[1727783297483,7.38815498,2635.7,2635.6,0.0560295]
[1727783297686,5.41237371,2635.7,2635.6,0.0560295]
[1727783297840,3.79405,2635.7,2635.6,0.19087681]
[1727783299349,3.79405,2635.7,2635.6,1.00727681]
[1727783299657,3.79392,2635.8,2635.6,1.00727681]
[1727783301387,3.79405,2635.7,2635.6,1.00727681]
[1727783301885,3.79399,2635.8,2635.6,1.00727681]
[1727783303558,5.41217371,2635.9,2635.6,1.00727681]
[1727783304372,3.79393,2635.8,2635.6,1.00727681]
[1727783304553,5.41237371,2635.7,2635.6,1.00727681]
[1727783304759,5.41237371,2635.7,2635.6,0.19087681]
[1727783308010,1.61832371,2635.7,2635.6,0.19087681]
[1727783308373,5.41237371,2635.7,2635.6,0.19087681]
[1727783309274,1.61832371,2635.7,2635.6,0.19087681]
[1727783312920,5.41215371,2635.9,2635.7,0.8101]
[1727783313099,1.61832371,2635.9,2635.7,0.8101]
[1727783313407,5.41215371,2635.9,2635.8,0.13449067]
[1727783314510,5.41215371,2635.9,2635.7,0.8101]
[1727783314716,5.41215371,2635.9,2635.8,0.13449067]
[1727783314874,3.79383,2635.9,2635.8,0.13449067]
[1727783315073,3.79383,2635.9,2635.7,0.8101]
[1727783315523,3.79383,2635.9,2635.8,0.13449067]
[1727783319902,3.79383,2635.9,2635.7,0.8101]
[1727783320097,3.79391,2635.8,2635.7,0.8101]
[1727783323704,5.41223371,2635.8,2635.7,0.8101]
[1727783325453,3.79405,2635.7,2635.6,0.0560295]
[1727783325915,3.79405,2635.7,2635.6,0.19076807]
[1727783330030,6.52530262,2635.7,2635.6,0.19076807]
[1727783330546,6.52490593,2635.7,2635.6,0.19076807]
[1727783331040,6.52494578,2635.7,2635.6,0.19076807]
[1727783331900,6.5249669,2635.7,2635.6,0.19076807]
[1727783334658,4.54885,2635.7,2635.6,0.19076807]
[1727783334824,6.5252855,2635.7,2635.6,0.19076807]
[1727783335327,4.54885,2635.7,2635.6,0.19076807]
[1727783336320,6.52536098,2635.7,2635.6,0.19076807]
[1727783336517,4.54885,2635.7,2635.6,0.19076807]
[1727783339339,4.54885,2635.7,2635.6,0.0560295]
[1727783351901,3.79405,2635.7,2635.6,0.0560295]
[1727783352466,3.79405,2635.7,2635.6,0.19084552]
[1727783352670,3.79405,2635.7,2635.6,0.0560295]
[1727783352855,3.79405,2635.7,2635.6,0.19084552]
[1727783353052,3.79405,2635.7,2635.6,0.0560295]
[1727783353653,5.77181094,2635.7,2635.6,0.0560295]
[1727783353856,3.79405,2635.7,2635.6,0.0560295]
[1727783357018,5.77194296,2635.7,2635.6,0.0560295]
[1727783357216,5.77196676,2635.7,2635.6,0.0560295]
[1727783360533,3.79405,2635.7,2635.6,0.0560295]
[1727783360723,5.77227838,2635.7,2635.6,0.0560295]
[1727783361736,3.79405,2635.7,2635.6,0.0560295]
[1727783362441,5.77241773,2635.7,2635.6,0.0560295]
[1727783362645,5.77255055,2635.7,2635.6,0.0560295]
[1727783363541,3.79405,2635.7,2635.6,0.0560295]
[1727783365034,1.97907034,2635.7,2635.6,0.8140295]
[1727783365235,3.59739405,2635.7,2635.6,0.94883508]
[1727783365408,3.59739405,2635.7,2635.6,0.8140295]
[1727783365409,5.41237371,2635.7,2635.6,0.8140295]
[1727783365614,7.39144405,2635.7,2635.6,0.94888126]
[1727783365812,7.39144405,2635.7,2635.6,0.8140295]
[1727783366407,7.39151367,2635.7,2635.6,0.8140295]
[1727783366570,5.41237371,2635.7,2635.6,0.0560295]
[1727783367053,7.39170025,2635.7,2635.6,0.0560295]
[1727783367411,5.41237371,2635.7,2635.6,0.0560295]
[1727783367627,7.39193441,2635.7,2635.6,0.0560295]
[1727783368565,7.39210662,2635.7,2635.6,0.0560295]
[1727783369382,5.41237371,2635.7,2635.6,0.0560295]
[1727783373537,5.41237371,2635.7,2635.6,0.19088126]
[1727783375258,5.41237371,2635.7,2635.6,0.0560295]
[1727783375557,5.41237371,2635.7,2635.6,0.19088126]
[1727783391561,5.41237371,2635.7,2635.6,0.0560295]
[1727783391754,5.41237371,2635.7,2635.6,0.19089765]
[1727783393925,5.41237371,2635.7,2635.6,0.18976437]
[1727783397322,7.79084776,2635.7,2635.6,0.18976437]
[1727783397822,5.41237371,2635.7,2635.6,0.18976437]
[1727783399230,7.79084776,2635.7,2635.6,0.18976437]
[1727783400231,7.79084776,2635.7,2635.6,0.05489622]
[1727783400734,7.79084776,2635.7,2635.6,0.17608984]
[1727783401028,7.79150881,2635.7,2635.6,0.17608984]
[1727783401232,7.79150881,2635.7,2635.6,0.05489622]
[1727783402807,7.79150881,2635.7,2635.6,0.17608984]
[1727783402991,7.79150881,2635.7,2635.6,0.05489622]
[1727783403398,5.41237371,2635.7,2635.6,0.05489622]
[1727783403708,5.41237371,2635.7,2635.6,0.17594923]
[1727783403899,5.41237371,2635.7,2635.6,0.05489622]
[1727783404098,7.79145117,2635.7,2635.6,0.17594923]
[1727783404331,5.41237371,2635.7,2635.6,0.05489622]
[1727783404633,7.79143021,2635.7,2635.6,0.05489622]
[1727783404837,5.41237371,2635.7,2635.6,0.17594923]
[1727783405136,7.79145397,2635.7,2635.6,0.17594923]
[1727783408138,7.79145397,2635.7,2635.6,0.05489622]
[1727783409842,7.79152886,2635.7,2635.6,0.05489622]
[1727783410202,5.41237371,2635.7,2635.6,0.05489622]
[1727783410403,5.41237371,2635.7,2635.6,0.17595669]
[1727783411016,5.41237371,2635.7,2635.6,0.05489622]
[1727783411494,5.41237371,2635.7,2635.6,0.17595669]
[1727783412202,5.41237371,2635.7,2635.6,0.05489622]
[1727783412408,5.41237371,2635.7,2635.6,0.17595669]
[1727783414921,7.79155455,2635.7,2635.6,0.17595669]
[1727783416468,5.41237371,2635.7,2635.6,0.17595669]
[1727783417124,7.79123992,2635.7,2635.6,0.17595669]
[1727783419155,7.79123992,2635.7,2635.6,0.05489622]
[1727783419859,7.79123992,2635.7,2635.6,0.17595223]
[1727783420070,7.79123992,2635.7,2635.6,0.05489622]
[1727783420214,7.79123992,2635.7,2635.6,0.17595223]